Cogmind - Beta 9.6 @@@ ROGUE MODE // 2020.07.10 @ 16:32:30 Player: Zeldest Result: Destroyed by S-10 Pest with Light Assault Rifle Performance ------------- Evolutions (2) 1000 Regions Visited (4) 800 Robots Destroyed (53) 265 Value Destroyed (1366) 1366 Prototype IDs (0) 0 Alien Tech Used (0) 0 Bonus (0) 0 TOTAL SCORE: 3431 Bonus ------- None Cogmind --------- Core Integrity 0/550 Matter 300/300 Energy 100/100 System Corruption 2% Temperature Cool (0) Movement Core (850) Ox16 Location -8/Materials Parts ------- > --- POWER (1) -------- (None) > --- PROPULSION (2) --- (None) > --- UTILITY (6) ------ Large Storage Unit High-capacity Storage Unit Improved Signal Interpreter Melee Analysis Suite Armor Integrity Analyzer > --- WEAPON (2) ------- Mining Claw > --- INVENTORY (18) --- Light Nuclear Core Signal Interpreter Armor Integrity Analyzer Core Shielding Weapon Shielding Light Armor Plating Light Armor Plating Hardened Light Armor Plating Heavy Hammer Heavy Hammer Heavy Hammer Mining Claw Mining Claw Peak State ------------ > --- POWER ------------ (None) > --- PROPULSION ------- Improved Aluminum Leg Improved Aluminum Leg > --- UTILITY ---------- Large Storage Unit High-capacity Storage Unit Improved Sensor Array Improved Signal Interpreter Melee Analysis Suite Hardened Medium Armor Plating > --- WEAPON ----------- Mining Claw Katana > --- INVENTORY -------- Signal Interpreter Armor Integrity Analyzer Armor Integrity Analyzer Core Shielding Weapon Shielding Light Armor Plating Light Armor Plating Hardened Light Armor Plating Hardened Light Armor Plating Heavy Hammer Heavy Hammer Heavy Hammer Mining Claw Mining Claw Mining Claw [Rating: 22] Favorites ----------- Power Light Ion Engine Engine Light Ion Engine Propulsion Improved Aluminum Leg Treads Improved Treads Leg Improved Aluminum Leg Wheel Wheel Utility Large Storage Unit Device Improved Sensor Array Storage Large Storage Unit Processor Melee Analysis Suite Protection Hardened Medium Armor Plating Weapon Mining Claw Energy Gun Beam Rifle Ballistic Gun Assault Rifle Launcher Grenade Launcher Special Weapon Mining Laser Impact Weapon Heavy Hammer Slashing Weapon Mining Claw Build | -11 -10 -9 -9 -8 ------- Run | Scr Mat Mat Min Mat Slots Evolved 4 | . . 2 . 2 Power . | . . . . . Propulsion . | . . . . . Utility 4 | . . 2 . 2 Weapon . | . . . . . Parts Attached 93 | 5 31 27 16 14 Power 12 | 2 3 4 2 1 Engine 12 | 2 3 4 2 1 Core . | . . . . . Reactor . | . . . . . Propulsion 28 | 2 8 8 6 4 Treads 7 | . . 4 3 . Leg 11 | 2 2 . 3 4 Wheel 10 | . 6 4 . . Hover . | . . . . . Flight . | . . . . . Utility 22 | 1 2 11 2 6 Device 1 | . . . . 1 Storage 4 | 1 2 1 . . Processor 3 | . . . . 3 Hackware . | . . . . . Protection 14 | . . 10 2 2 Artifact . | . . . . . Weapon 31 | . 18 4 6 3 Energy Gun 3 | . 3 . . . Energy Cannon . | . . . . . Ballistic Gun 3 | . 3 . . . Ballistic Cannon . | . . . . . Launcher 1 | . 1 . . . Special Weapon 8 | . 8 . . . Impact Weapon 6 | . 2 2 2 . Slashing Weapon 10 | . 1 2 4 3 Piercing Weapon . | . . . . . Special Melee Weapon . | . . . . . Unidentified Prototypes . | . . . . . Parts Lost 25 | . 5 3 5 12 Power 3 | . . 1 1 1 Propulsion 8 | . 1 1 1 5 Utility 6 | . . 1 2 3 Weapon 8 | . 4 . 1 3 Highest Loss Streak 7 | . 4 1 4 7 Average Slot Usage (%) 92 | . 94 90 95 89 Engine 8 | . 13 9 8 . Treads 4 | . . 11 8 . Leg 10 | . 11 . 12 17 Wheel 6 | . 14 7 . . Device 2 | . . . . 8 Storage 22 | . 27 22 22 18 Processor 4 | . . . . 18 Protection 10 | . . 19 21 8 Energy Gun 4 | . 11 . . . Special Weapon 3 | . 11 . . . Impact Weapon 3 | . 1 8 5 . Slashing Weapon 9 | . . 10 15 18 Naked Turns . | . . . . . Heaviest Build 76 | 9 41 76 75 61 Greatest Support 46 | 20 26 46 46 28 Greatest Overweight (x) 16 | 1 10 16 4 4 Average Overweight (x) 1 | . 1 2 1 1 Largest Inventory Capacity 18 | 6 16 18 18 18 Average Capacity 17 | 5 15 17 18 18 Most Carried 18 | 6 16 18 18 17 Average Carried 13 | 3 10 16 16 15 Final Capacity 18 | 6 16 18 18 18 Final Carried 18 | 6 16 18 17 13 Class Distribution -------------------- 70% | Mutant 29% | Scavenger-Mutant Dominant Class ---------------- Mutant | -10/Materials Mutant | -9/Materials Mutant | -9/Mines Scavenger-Mutant | -8/Materials Resources | -11 -10 -9 -9 -8 ----------- Run | Scr Mat Mat Min Mat Matter Collected 1095 | 231 245 334 160 125 Remotely . | . . . . . Salvage Created 1742 | . 319 625 391 407 Parts 115 | . 32 28 25 30 Haulers Intercepted . | . . . . . Recyclers Shooed 1 | . 1 . . . Parts Field Recycled . | . . . . . Retrieved Matter . | . . . . . Parts Self-Destructed . | . . . . . Prevented . | . . . . . Kills | -11 -10 -9 -9 -8 ------- Run | Scr Mat Mat Min Mat Combat Hostiles Destroyed 44 | . 10 13 9 12 Melee 33 | . . 12 9 12 Guns 5 | . 5 . . . Cannons 2 | . 2 . . . AOE 3 | . 3 . . . Classes Destroyed 8 | . 5 1 1 1 Builder 4 | . 4 . . . Recycler 3 | . 1 2 . . Watcher 2 | . 2 . . . Swarmer 16 | . 6 4 . 6 Grunt 22 | . 4 8 7 3 Duelist 2 | . . . 2 . Sentry 3 | . . 1 . 2 Hunter 1 | . . . . 1 Best Kill Streak 8 | . 8 4 2 2 Combat Bots Only 4 | . 4 4 2 2 Max Kills in Single Turn 7 | . 7 1 1 1 Gunslinging . | . . . . . Exploded 3 | . 3 . . . Melee 1 | . . 1 1 1 Uniques/NPCs Destroyed . | . . . . . Combat | -11 -10 -9 -9 -8 -------- Run | Scr Mat Mat Min Mat Damage Taken 4752 | . 648 1417 941 1746 Core 1085 | . 145 167 217 556 Absorbed by Shields . | . . . . . Core Remaining (%) 48 | 100 42 . 4 . Volleys Fired 36 | . 36 . . . Largest 2 | . 2 . . . Hottest 200 | . 200 . . . Shots Fired 61 | . 61 . . . Gun 40 | . 40 . . . Cannon . | . . . . . Launcher 1 | . 1 . . . Special 20 | . 20 . . . Kinetic . | . . . . . Thermal 60 | . 60 . . . Explosive 1 | . 1 . . . Electromagnetic . | . . . . . Robot Hit Streak 4 | . 4 . . . Robot Miss Streak 4 | . 4 . . . Penetration Max . | . . . . . Secondary Targets . | . . . . . Shots Hit Robots 132 | . 33 45 26 28 Core Hits 64 | . 23 16 12 13 Critical Hits 1 | . . . . 1 Critical Kills 1 | . . . . 1 Critical Parts Destroyed . | . . . . . Melee Attacks 161 | . . 78 39 44 Impact 16 | . . 13 3 . Slashing 145 | . . 65 36 44 Piercing . | . . . . . Sneak Attacks 2 | . . 2 . . Combat Hostiles . | . . . . . Follow-up Attacks 24 | . . 14 4 6 Damage Inflicted 3428 | . 845 1110 662 811 Guns 352 | . 352 . . . Cannons . | . . . . . Explosions 365 | . 365 . . . Melee 2583 | . . 1110 662 811 Ramming . | . . . . . Kinetic . | . . . . . Thermal 480 | . 480 . . . Explosive 365 | . 365 . . . Electromagnetic . | . . . . . Impact 253 | . . 174 79 . Slashing 2330 | . . 936 583 811 Piercing . | . . . . . Highest Corruption 2 | . 2 . . 2 Average Corruption 1 | . 1 . . 2 Corruption Purged . | . . . . . Effects 8 | . 3 . . 5 Message Errors 2 | . . . . 2 Heat Flow Errors 1 | . 1 . . . Data Loss (minor) 1 | . . . . 1 Targeting Errors 4 | . 2 . . 2 Overload Shots . | . . . . . Overflow Damage 102 | . 34 42 5 21 Projectiles . | . . . . . Explosions 34 | . 34 . . . Melee 68 | . . 42 5 21 Knockbacks . | . . . . . Impact . | . . . . . Kinetic . | . . . . . Secondary . | . . . . . Self-Inflicted Damage 39 | . 39 . . . Shots 1 | . 1 . . . Rammed . | . . . . . Targets Rammed . | . . . . . Kicked . | . . . . . Crushed . | . . . . . Highest Temperature 388 | . 388 2 4 . Average Temperature 100 | . 102 1 4 . Received Heat Transfer 1386 | . 162 525 330 369 Effects 3 | . 3 . . . Shutdowns 2 | . 2 . . . Damage (minor) 1 | . 1 . . . Siege Activations . | . . . . . Robots Corrupted . | . . . . . Combat Hostiles . | . . . . . Parts Fried 3 | . . 3 . . Impact Corruptions 2 | . . 2 . . Robots Melted . | . . . . . Combat Hostiles . | . . . . . Parts Melted 2 | . 2 . . . Heat Transferred 1213 | . 1213 . . . Parts Sabotaged . | . . . . . Parts Stolen . | . . . . . Parts Stripped . | . . . . . Power Chain Reactions . | . . . . . Missiles Intercepted . | . . . . . Alert | -11 -10 -9 -9 -8 ------- Run | Scr Mat Mat Min Mat Peak Influence 230 | . 134 155 230 158 Average Influence 61 | . 43 49 136 60 Maximum Alert Level 1 | . . . 1 . Low Security (%) 97 | 100 100 100 82 100 Level 1 2 | . . . 17 . Level 2 . | . . . . . Level 3 . | . . . . . Level 4 . | . . . . . Level 5 . | . . . . . High Security . | . . . . . Max Security . | . . . . . Squads Dispatched 2 | . . . . 2 Investigation 1 | . . . . 1 Extermination . | . . . . . Reinforcement 1 | . . . . 1 Assault . | . . . . . Garrison . | . . . . . Intercept . | . . . . . Construction Impeded . | . . . . . Haulers Reinforced . | . . . . . Stealth | -11 -10 -9 -9 -8 --------- Run | Scr Mat Mat Min Mat Distress Signals 4 | . 2 2 . . Communications Jammed . | . . . . . Distress Signals . | . . . . . Times Spotted 79 | . 20 29 10 20 Peak Tracking Total 8 | . 5 6 3 8 Tactical Retreats 6 | . 2 3 1 . Traps | -11 -10 -9 -9 -8 ------- Run | Scr Mat Mat Min Mat Traps Triggered 12 | . 5 5 . 2 Indirectly . | . . . . . Trap Hack Attempts . | . . . . . Triggered . | . . . . . Disarmed . | . . . . . Reprogrammed . | . . . . . Reused . | . . . . . Traps Extracted . | . . . . . Installed . | . . . . . Triggered . | . . . . . Machines | -11 -10 -9 -9 -8 ---------- Run | Scr Mat Mat Min Mat Machines Disabled 1 | . 1 . . . Max in Single Turn 1 | . 1 . . . Machines Sabotaged . | . . . . . Garrisons Compromised . | . . . . . Overloaded Fab Kills . | . . . . . Fab Network Shutdowns . | . . . . . Hacking | -11 -10 -9 -9 -8 --------- Run | Scr Mat Mat Min Mat Machines Accessed 1 | . . 1 . . Terminals . | . . . . . Fabricators . | . . . . . Repair Stations 1 | . . 1 . . Recycling Units . | . . . . . Scanalyzers . | . . . . . Garrison Access . | . . . . . Total Hacks 3 | . . 3 . . Successful 2 | . . 2 . . Failed 1 | . . 1 . . Catastrophic . | . . . . . Database Lockouts . | . . . . . Manual . | . . . . . Terminals . | . . . . . Fabricators . | . . . . . Repair Stations 3 | . . 3 . . Recycling Units . | . . . . . Scanalyzers . | . . . . . Garrison Access . | . . . . . Terminal Hacks . | . . . . . Fabricator Hacks . | . . . . . Repair Station Hacks 2 | . . 2 . . Scan Component 1 | . . 1 . . Repair 1 | . . 1 . . Recycling Unit Hacks . | . . . . . Scanalyzer . | . . . . . Garrison Access Hacks . | . . . . . Unauthorized Hacks . | . . . . . Terminals . | . . . . . Fabricators . | . . . . . Repair Stations . | . . . . . Recycling Units . | . . . . . Scanalyzers . | . . . . . Garrison Access . | . . . . . Data Cores Recovered . | . . . . . Used . | . . . . . Hacking Detections 1 | . . 1 . . Full Trace Events . | . . . . . Feedback Events . | . . . . . Feedback Blocked . | . . . . . Robot Schematics Acquired . | . . . . . Robots Built . | . . . . . Matter . | . . . . . Time . | . . . . . Total Robot Build Rating . | . . . . . Part Schematics Acquired . | . . . . . Parts Built . | . . . . . Matter . | . . . . . Time . | . . . . . Total Part Build Rating . | . . . . . Parts Repaired 1 | . . 1 . . Time 26 | . . 26 . . Parts Recycled . | . . . . . Recycled Matter . | . . . . . Retrieved Matter . | . . . . . Retrieved Components . | . . . . . Parts Scanalyzed . | . . . . . Part Schematics Acquired . | . . . . . Parts Damaged . | . . . . . Bothacking | -11 -10 -9 -9 -8 ------------ Run | Scr Mat Mat Min Mat Used RIF Installer . | . . . . . Robots Hacked . | . . . . . Non-combat . | . . . . . Combat . | . . . . . Robot Hacks Applied . | . . . . . Relay Couplers Released . | . . . . . Robots Rewired . | . . . . . Allies Hacked . | . . . . . Hacks Repelled . | . . . . . Allies | -11 -10 -9 -9 -8 -------- Run | Scr Mat Mat Min Mat Total Allies . | . . . . . Largest Group . | . . . . . Highest-Rated Group . | . . . . . Highest-Rated Ally . | . . . . . Total Orders . | . . . . . Ally Attacks . | . . . . . Total Damage . | . . . . . Kills . | . . . . . Allies Corrupted . | . . . . . Allies Melted . | . . . . . Intel | -11 -10 -9 -9 -8 ------- Run | Scr Mat Mat Min Mat Robot Analysis Total . | . . . . . Derelict Logs Recovered . | . . . . . Drone Launches . | . . . . . Drone Recoveries . | . . . . . Exploration | -11 -10 -9 -9 -8 ------------- Run | Scr Mat Mat Min Mat Turns Passed 3824 | 65 1280 944 532 1003 Spaces Moved 1966 | 50 850 419 212 435 Core 37 | 17 9 11 . . Treads 264 | . . 181 83 . Legs 864 | 33 267 . 129 435 Wheels 801 | . 574 227 . . Hover . | . . . . . Flight . | . . . . . Fastest Speed 50 | 50 90 100 180 150 Average Speed 147 | 102 120 156 181 178 Slowest Speed 850 | 120 550 850 240 240 Overloaded Moves . | . . . . . Propulsion Burnouts . | . . . . . Robots Hopped . | . . . . . Cave-ins Triggered . | . . . . . Exploration Rate (%) 41 | 4 97 28 47 31 Regions Visited 4 Branch Regions 1 Pre-discovered Areas . | . . . . . Known Exits Taken . | . . . . . Unknown Exits Taken 4 | 1 1 1 1 . Scrap Searched . | . . . . . Spaces Dug . | . . . . . Terrain Destroyed 9 | . 9 . . . Melee . | . . . . . Projectile 5 | . 5 . . . AOE 4 | . 4 . . . Actions | -11 -10 -9 -9 -8 --------- Run | Scr Mat Mat Min Mat Total 2538 | 63 1016 572 292 595 Wait 192 | . 38 37 14 103 Move 1962 | 49 849 418 211 435 Hop . | . . . . . Pick Up 86 | 9 42 20 10 5 Fast Attach 8 | 1 1 6 . . Attach 46 | 3 15 12 5 11 Detach 1 | . . . . 1 Swap 39 | 1 15 9 11 3 Drop 35 | . 20 9 6 . Fire 36 | . 36 . . . Melee 133 | . . 61 35 37 Ram . | . . . . . Kick . | . . . . . Crush . | . . . . . Escape Stasis . | . . . . . Rewire . | . . . . . Trap . | . . . . . Miscellaneous . | . . . . . Route ------- -11/Scrapyard -10/Materials (discovered 5 exits: *Mat x3 / [*Min x2]) -9/Materials (discovered 2 exits: [*Mat] / *Min) -9/Mines -8/Materials (discovered 1 exit: [*Fac]) History --------- Turn | Location | Event 5 | -11/Scrapyard | Discovered new exit (range 16) 66 | -11/Scrapyard | Entered Materials 272 | -10/Materials | Discovered new exit (range 9) 301 | -10/Materials | Build established: Mutant 310 | -10/Materials | Discovered new exit (range 15) 415 | -10/Materials | Discovered new exit (range 14) 457 | -10/Materials | Discovered new exit (range 8) 1111 | -10/Materials | Core integrity fell below 50% 1149 | -10/Materials | Lost 4 parts (4w) 1179 | -10/Materials | Discovered new exit (range 13) 1346 | -10/Materials | Entered another Materials area 1346 | -9/Materials | Evolved 2 slots: Utility x2 1568 | -9/Materials | Repaired Lgt. Ion Engine 1842 | -9/Materials | Discovered new exit (range 13) 2112 | -9/Materials | Discovered new exit (range 10) 2290 | -9/Materials | Entered Mines 2316 | -9/Mines | Core integrity fell below 50% 2401 | -9/Mines | Received a Rocket Launcher from a helpful Derelict 2605 | -9/Mines | Core integrity fell below 20% 2760 | -9/Mines | Lost 4 parts (1p1n1u1w) 2816 | -9/Mines | Discovered new exit (range 4) 2822 | -9/Mines | Entered Materials 2822 | -8/Materials | Evolved 2 slots: Utility x2 3047 | -8/Materials | Build established: Scavenger-Mutant 3190 | -8/Materials | Discovered new exit (range 16) 3802 | -8/Materials | Core integrity fell below 50% 3813 | -8/Materials | Core integrity fell below 20% 3825 | -8/Materials | Destroyed by S-10 Pest with Light Assault Rifle Last Messages --------------- 03784_ U-05 Engineer lays Concrete. 03785_ S-10 Pest destroyed. 03788_ Katana follow-up attack on G-47 Trooper. 03791_ Imp. Sensor Array destroyed. 03791_ System corrupted: Mining Claw targeting data glitched. 03794_ R-06 Scavenger collects Flight Unit. 03794_ Katana follow-up attack on G-47 Trooper. 03798_ Lgt. Nuclear Core ripped off. 03798_ Katana follow-up attack on G-47 Trooper. 03798_ G-47 Trooper destroyed. 03800_ R-06 Scavenger collects Flight Unit. 03801_ =0NW =PGWL&KJ IT6=WQ=U&Q 03801_ Acquired 5 matter. 03805_ Katana destroyed. 03805_ Carbon-fiber Leg destroyed. 03807_ Acquired 10 matter. 03814_ Mining Claw follow-up attack on S-10 Pest. 03822_ Mining Claw destroyed. 03823_ Hrd. Light Armor Plating destroyed. 03824_ S-10 Pest destroyed. Map ----- +----------------------------------------------------+ | ????# #??????????# ######+##### ##?? | | ????# #####??????# #?# # #??? | | #####+## ?????######## """ # #??? | | # # ####????# # """ # #??? | | # # #???????# # """ # #### | | # # #???????# # # | | # # ^ #?####### # # #### | | # # ^ ### # # "T" # #??? | | # # # # """ # #??? | | # + T + # # #??? | | # # # ########## #??? | | # ### #### # #????????# #??? | | # #?# #??## ## #????????# #??? | | # #?# #???# ## #????????# #??? | | # #?# #???# ## #????????# #??? | | #] #?# #???# #########????????# #??# | | ########?#+#???# #????###########?# #??# | | ???????????????# #????# #?# #??# | | ???????????????# #????# #?#%#### | | ???????????????# #????# #?# | | ???????????????# #????# """"" #?# % | | ???????????????# #????# """"" #?# | | ???????????????# #????# """"" #?# %## | | ???????????????# s #????# #?#"%%#? | | ???????????????#==%#????# [ [ #?# #? | | ????####/#######%@!##########+####### #? | | ????# % % % #? | | ????# < Y g g #? | | ????# u #? | | ????####+####################+###########? | | ????????????????????????# #???????? | | ????????????????????????# #???????? | | ????????????????????????# #???????? | | ????????????????????????# #???????? | | ????????????????????????# #???????? | | ????????????????????????# #???????? | | ????????????????????????# #???????? | | ????????????????????????# #???????? | | ????????????????????????# #???????? | | ????????????????????????##########???????? | | ?????????????????????????????????????????? | | ?????????????????????????????????????????? | | ?????????????????????????????????????????? | | ?????????????????????????????????????????? | | ?????????????????????????????????????????? | | ?????????????????????????????????????????? | | ?????????????????????????????????????????? | | ?????????????????????????????????????????? | | ?????????????????????????????????????????? | | ?????????????????????????????????????????? | +----------------------------------------------------+ Best States ------------- Heat Dissipation 31 Energy Generation 12 Energy Capacity 265 Matter Stores 300 Matter Capacity 300 Sight Range 16 Robot Scan Range 13 Terrain Scan Density 10 Armor Coverage 450 Core Shielding 20 Evasion (%) 50 Melee Accuracy 5 Armor Integrity Analysis 33 Recoil Reduction 2 Item Schematics ----------------- None Robot Schematics ------------------ None Fabricated ------------ Nothing Alien Tech Used ----------------- None Achievements -------------- Close Call I Spy Challenges ------------ None Game ------ Seed SmallLargeTendrils Manual? 0 Play Time 00:54:40 Cumulative 9.3 hours Start 2020.07.10 @ 15:34:03 End 2020.07.10 @ 16:32:30 Sessions 1 Manual Loads 0 Difficulty Rogue Special Mode None Game No. 21 Rogue 21 Adventurer 0 Explorer 0 Win Type - Total 0 Types 0/0/0/0/0/0/0 Lore% 5 Gallery% 16 Achievement% 10 Wizard Run 0 Options --------- ASCII 0 Keyboard 0 Movement Numpad Keybinds 0 Fullscreen 1 Font 18/SmallcapsGlow Map View 76x50 Tactical HUD 1 Map Filters NONE Filters NONE Steam 1 RUN: b1e59f2e-1444-483c-865b-d172d2ddfb1c